Cogmind - Beta 15 @@@ ROGUE MODE // 2025.05.06 @ 14:17:22 // Winter2019/RPGLIKE Player: DeepestRoots Result: Destroyed by G-34 Mercenary with Small Laser Performance ------------- Evolutions (1) 500 Regions Visited (2) 400 Robots Destroyed (27) 135 Value Destroyed (774) 774 Prototype IDs (2) 40 Alien Tech Used (0) 0 Bonus (0) 0 TOTAL SCORE: 1849 Bonus ------- None Cogmind --------- Core Integrity 0/600 Matter 270/300 Energy 265/265 System Corruption 0% Temperature Cool (6) Movement Walking (120) Location -9/Materials Parts ------- > --- POWER (1) -------- Improved Ion Engine > --- PROPULSION (2) --- Aluminum Leg Aluminum Leg > --- UTILITY (3) ------ Seismic Detector Light Armor Plating Hacking Suite > --- WEAPON (2) ------- Assault Rifle Assault Rifle > --- INVENTORY (2) ---- Datajack Mining Laser Peak State ------------ > --- POWER ------------ Ion Engine > --- PROPULSION ------- Aluminum Leg Aluminum Leg > --- UTILITY ---------- Cooling System Seismic Detector Hacking Suite > --- WEAPON ----------- Assault Rifle Assault Rifle > --- INVENTORY -------- Datajack Mining Laser [Rating: 11] Favorites ----------- Power Ion Engine Engine Ion Engine Propulsion Aluminum Leg Leg Aluminum Leg Utility Seismic Detector Device Seismic Detector Hackware Hacking Suite Protection Light Armor Plating Weapon Assault Rifle Ballistic Gun Assault Rifle Special Melee Weapon Datajack Build | -11 -10 -9 ------- Run | Yrd Mat Mat Slots Evolved 4 | 3 1 . Power . | . . . Propulsion 1 | 1 . . Utility 2 | 1 1 . Weapon 1 | 1 . . Parts Attached 15 | 7 6 2 Power 2 | 1 . 1 Engine 2 | 1 . 1 Core . | . . . Reactor . | . . . Propulsion 2 | 2 . . Treads . | . . . Leg 2 | 2 . . Wheel . | . . . Hover . | . . . Flight . | . . . Utility 7 | 2 4 1 Device 4 | 2 2 . Storage . | . . . Processor . | . . . Hackware 1 | . 1 . Protection 2 | . 1 1 Artifact . | . . . Weapon 4 | 2 2 . Energy Gun . | . . . Energy Cannon . | . . . Ballistic Gun 3 | 2 1 . Ballistic Cannon . | . . . Launcher . | . . . Special Weapon . | . . . Impact Weapon . | . . . Slashing Weapon . | . . . Piercing Weapon . | . . . Special Melee Weapon 1 | . 1 . Unidentified Prototypes . | . . . Parts Lost 1 | . 1 . Power . | . . . Propulsion . | . . . Utility 1 | . 1 . Weapon . | . . . Highest Loss Streak 1 | . 1 . To Critical Strikes . | . . . Average Backups 1 | . 1 2 Power . | . . . Propulsion . | . . . Utility . | . . . Weapon . | . 1 1 Tool/Special . | . . . Unused Backups 1 | . . 1 Power . | . . . Propulsion . | . . . Utility . | . . . Weapon 1 | . . 1 Tool/Special . | . . . Average Slot Usage (%) 98 | . 98 100 Engine 13 | . 13 12 Leg 27 | . 27 25 Device 22 | . 22 20 Hackware 3 | . 2 12 Protection 3 | . 3 4 Ballistic Gun 26 | . 26 25 Peak Build Rating 11 | 9 11 11 Average Rating 8 | 4 8 10 On Entrance 6 | . 9 11 Naked Turns . | . . . Heaviest Build 15 | 11 13 15 Greatest Support 20 | 20 20 20 Greatest Overweight (x) . | . . . Average Overweight (x) . | . . . Largest Inventory Capacity 2 | 1 2 2 Average Capacity 1 | . 1 2 Most Carried 2 | 1 2 2 Average Carried 1 | . 1 2 Final Capacity 2 | 1 2 2 Final Carried 2 | 1 2 2 Class Distribution -------------------- 100% | Mutant Dominant Class ---------------- Mutant | -10/Materials Mutant | -9/Materials Resources | -11 -10 -9 ----------- Run | Yrd Mat Mat Matter Collected 855 | 274 487 94 Remotely . | . . . Salvage Created 977 | 11 834 132 Parts 65 | 5 47 13 Haulers Intercepted 1 | . 1 . Recyclers Shooed . | . . . Parts Field Recycled . | . . . Retrieved Matter . | . . . Parts Self-Destructed . | . . . Prevented . | . . . Kills | -11 -10 -9 ------- Run | Yrd Mat Mat Combat Hostiles Destroyed 22 | . 19 3 Guns 22 | . 19 3 Classes Destroyed 7 | 1 5 1 Tunneler 2 | 1 . 1 Hauler 1 | . 1 . Operator 1 | . 1 . Watcher 1 | . 1 . Swarmer 3 | . 3 . Grunt 18 | . 16 2 Sentry 1 | . . 1 Best Kill Streak 3 | 1 3 2 Combat Bots Only 3 | . 3 1 Max Kills in Single Turn 1 | 1 1 1 Gunslinging . | . . . Exploded . | . . . Melee . | . . . Uniques/NPCs Destroyed . | . . . Combat | -11 -10 -9 -------- Run | Yrd Mat Mat Hostile Shots Fired 99 | . 86 13 Missed 27 | . 26 1 Hits 72 | . 60 12 Projectile 72 | . 60 12 Critical Strikes 1 | . 1 . Damage Taken 850 | . 689 161 Core 603 | . 482 121 Absorbed by Shields . | . . . Redirected to Core 529 | . 418 111 Core Remaining (%) 59 | 100 19 . Volleys Fired 88 | 2 72 14 Largest 2 | 2 2 2 Hottest 40 | 40 40 40 Shots Fired 176 | 4 144 28 Gun 176 | 4 144 28 Cannon . | . . . Launcher . | . . . Special . | . . . Kinetic 176 | 4 144 28 Thermal . | . . . Explosive . | . . . Electromagnetic . | . . . Robot Hit Streak 14 | 1 14 10 Robot Miss Streak 4 | 2 4 2 Penetration Max . | . . . Secondary Targets 1 | . 1 . Max Gunslinging Chain 1 | . 1 . Shots Hit Robots 119 | 1 99 19 Core Hits 49 | 1 40 8 Critical Kills 1 | . 1 . Critical Parts Destroyed 2 | . 2 . Critical Strikes 3 | . 3 . Destroy 3 | . 3 . Melee Attacks . | . . . Impact . | . . . Slashing . | . . . Piercing . | . . . Sneak Attacks . | . . . Combat Hostiles . | . . . Follow-up Attacks . | . . . Damage Inflicted 1558 | 12 1293 253 Guns 1551 | 12 1286 253 Cannons . | . . . Explosions . | . . . Melee . | . . . Ramming 7 | . 7 . Kinetic 1551 | 12 1286 253 Thermal . | . . . Explosive . | . . . Electromagnetic . | . . . Impact . | . . . Slashing . | . . . Piercing . | . . . Highest Corruption . | . . . Average Corruption . | . . . Corruption Purged . | . . . Corruption Blocked . | . . . Overload Shots . | . . . Overflow Damage . | . . . Projectiles . | . . . Explosions . | . . . Melee . | . . . Knockbacks . | . . . Impact . | . . . Kinetic . | . . . Secondary . | . . . Self-Inflicted Damage . | . . . Shots . | . . . Rammed . | . . . Targets Rammed 2 | . 2 . Kicked 2 | . 2 . Crushed . | . . . Highest Temperature 27 | . 27 3 Average Temperature 7 | . 8 3 Received Heat Transfer 405 | . 345 60 Siege Activations . | . . . Martial Activations . | . . . Shielding Activations . | . . . Robots Disrupted . | . . . Combat Hostiles . | . . . Robots Corrupted . | . . . Combat Hostiles . | . . . Parts Fried . | . . . Impact Corruptions . | . . . Robots Melted . | . . . Combat Hostiles . | . . . Parts Melted . | . . . Heat Transferred . | . . . Parts Sabotaged . | . . . Parts Stolen . | . . . Parts Stripped . | . . . Power Chain Reactions . | . . . Alert | -11 -10 -9 ------- Run | Yrd Mat Mat Maximum Alert Level 1 | . 1 . Low Security (%) 70 | 100 64 100 Level 1 29 | . 35 . Level 2 . | . . . Level 3 . | . . . Level 4 . | . . . Level 5 . | . . . High Security . | . . . Max Security . | . . . Peak Influence 236 | 5 236 80 Initial 80 | . . 80 Average 136 | . 156 52 Influence Increases 750 | 5 645 100 Destroy 0b10 Robot/C 440 | . 380 60 Destroy 0b10 Robot/NC 25 | 5 15 5 Destroy Leader 104 | . 84 20 Successful Hack 28 | . 28 . Destroy Structure 3 | . 3 . Lose Combat Pursuer 150 | . 135 15 Influence Decreases 690 | 5 454 231 Entered New Map 111 | . . 111 Time Decay 569 | 5 444 120 Lost Part 10 | . 10 . Squads Dispatched 5 | . 4 1 Investigation 4 | . 3 1 Extermination . | . . . Reinforcement 1 | . 1 . Assault . | . . . Garrison . | . . . Intercept . | . . . Searches Triggered . | . . . Construction Impeded . | . . . Haulers Reinforced . | . . . Active Scanning Responses . | . . . Cargo Convoy Interrupts . | . . . Stealth | -11 -10 -9 --------- Run | Yrd Mat Mat Distress Signals 1 | . 1 . Communications Jammed . | . . . Distress Signals . | . . . Times Spotted 40 | . 34 6 Peak Tracking Total 4 | . 4 2 Tactical Retreats 7 | . 6 1 Traps | -11 -10 -9 ------- Run | Yrd Mat Mat Traps Triggered 3 | . 2 1 Indirectly . | . . . Trap Hack Attempts 30 | . 30 . Triggered . | . . . Disarmed . | . . . Reprogrammed 3 | . 3 . Reused . | . . . Traps Extracted . | . . . Installed . | . . . Triggered . | . . . Machines | -11 -10 -9 ---------- Run | Yrd Mat Mat Machines Disabled . | . . . Max in Single Turn . | . . . Machines Repaired . | . . . Machines Dismantled . | . . . Machines Sabotaged . | . . . Overloaded Fab Kills . | . . . Hacking | -11 -10 -9 --------- Run | Yrd Mat Mat Machines Accessed 7 | . 7 . Terminals 7 | . 7 . Fabricators . | . . . Repair Stations . | . . . Recycling Units . | . . . Scanalyzers . | . . . Garrison Access . | . . . Total Hacks 24 | . 24 . Successful 14 | . 14 . Failed 9 | . 9 . Catastrophic . | . . . Database Lockouts 1 | . 1 . Manual 9 | . 9 . Terminals 24 | . 24 . Fabricators . | . . . Repair Stations . | . . . Recycling Units . | . . . Scanalyzers . | . . . Garrison Access . | . . . Terminal Hacks 10 | . 10 . Robot Analysis 3 | . 3 . Prototype ID Bank 1 | . 1 . Alert Level 1 | . 1 . Locate Traps 1 | . 1 . Transport Status 1 | . 1 . Hauler Manifests 1 | . 1 . Registered Components 1 | . 1 . Zone Layout 1 | . 1 . Fabricator Hacks . | . . . Repair Station Hacks . | . . . Recycling Unit Hacks . | . . . Scanalyzer . | . . . Garrison Access Hacks . | . . . Unauthorized Hacks 4 | . 4 . Terminals 4 | . 4 . Botnet 2 | . 2 . Search 2 | . 2 . Fabricators . | . . . Repair Stations . | . . . Recycling Units . | . . . Scanalyzers . | . . . Garrison Access . | . . . Data Cores Recovered . | . . . Used . | . . . Hacking Detections 5 | . 5 . Full Trace Events 1 | . 1 . Feedback Events . | . . . Feedback Blocked . | . . . Robot Schematics Acquired . | . . . Robots Built . | . . . Authchips . | . . . Time . | . . . Total Robot Build Rating . | . . . Part Schematics Acquired . | . . . Parts Built . | . . . Authchips . | . . . Time . | . . . Total Part Build Rating . | . . . Parts Repaired . | . . . Time . | . . . Parts Recycled . | . . . Recycled Matter . | . . . Retrieved Matter . | . . . Retrieved Components . | . . . Parts Scanalyzed . | . . . Part Schematics Acquired . | . . . Parts Damaged . | . . . Bothacking | -11 -10 -9 ------------ Run | Yrd Mat Mat Used RIF Installer . | . . . Robots Hacked . | . . . Non-combat . | . . . Combat . | . . . Robot Hacks Applied . | . . . Relay Couplers Released . | . . . Fabnet Peak Effective % . | . . . Robots Rewired . | . . . Allies Hacked . | . . . Hacks Repelled . | . . . Allies | -11 -10 -9 -------- Run | Yrd Mat Mat Total Allies . | . . . Largest Group . | . . . Highest-Rated Group . | . . . Highest-Rated Ally . | . . . Total Orders . | . . . Ally Attacks . | . . . Total Damage . | . . . Kills . | . . . Allies Corrupted . | . . . Allies Melted . | . . . Intel | -11 -10 -9 ------- Run | Yrd Mat Mat Active Infowar (turns) 1764 | 18 1504 242 Terrain 144 | 10 134 . Seismic 1764 | 18 1504 242 Robot Analysis Total 3 | . 3 . Derelict Logs Recovered . | . . . Drone Launches . | . . . Drone Recoveries . | . . . Exploration | -11 -10 -9 ------------- Run | Yrd Mat Mat Turns Passed 1826 | 80 1504 242 Spaces Moved 837 | 60 685 92 Core 16 | 16 . . Treads . | . . . Legs 821 | 44 685 92 Wheels . | . . . Hover . | . . . Flight . | . . . Fastest Speed 50 | 50 120 120 Average Speed 118 | 101 120 120 Slowest Speed 120 | 120 120 120 Overloaded Moves . | . . . Propulsion Burnouts . | . . . Robots Hopped . | . . . Potential Cave-ins . | . . . Cave-ins Triggered . | . . . Exploration Rate (%) 35 | 5 95 7 Regions Visited 2 Branch Regions . Pre-discovered Areas . | . . . Known Exits Taken . | . . . Unknown Exits Taken 2 | 1 1 . Scrap Searched . | . . . Spaces Dug . | . . . Terrain Destroyed . | . . . Melee . | . . . Projectile . | . . . AOE . | . . . Terrain Rammed . | . . . Walls Destroyed . | . . . Machines Disabled . | . . . Actions | -11 -10 -9 --------- Run | Yrd Mat Mat Total 1488 | 71 1222 195 Wait 509 | 2 423 84 Move 835 | 59 684 92 Hop . | . . . Pick Up 2 | 1 1 . Fast Attach 12 | 7 4 1 Attach . | . . . Detach . | . . . Swap 5 | . 3 2 Drop 5 | . 3 2 Fire 88 | 2 72 14 Melee . | . . . Ram . | . . . Kick 2 | . 2 . Crush . | . . . Escape Stasis . | . . . Rewire . | . . . Trap 30 | . 30 . Miscellaneous . | . . . Route ------- -11/Scrapyard -10/Materials (discovered 4 exits: [*Mat x3] / [*Min]) -9/Materials History --------- Turn | Location | Event 2 | -11/Scrapyard | Met Revision 17 3 | -11/Scrapyard | Discovered new exit (range 14) 9 | -11/Scrapyard | Upgraded with Propulsion slot (x1) 9 | -11/Scrapyard | Upgraded with Utility slot (x1) 9 | -11/Scrapyard | Upgraded with Weapon slot (x1) 81 | -11/Scrapyard | Entered Materials 312 | -10/Materials | Build established: Mutant 571 | -10/Materials | Central database locked down 590 | -10/Materials | Core integrity fell below 50% 614 | -10/Materials | Reached level 2 655 | -10/Materials | Discovered new exit (range 6) 829 | -10/Materials | Discovered new exit (range 7) 1062 | -10/Materials | Discovered new exit (range 9) 1150 | -10/Materials | Discovered new exit (range 17) 1270 | -10/Materials | Upgraded with Utility slot (x1) 1484 | -10/Materials | Core integrity fell below 20% 1585 | -10/Materials | Entered another Materials area 1586 | -9/Materials | Core integrity fell below 50% 1586 | -9/Materials | Core integrity fell below 20% 1587 | -9/Materials | Reached level 3 1827 | -9/Materials | Destroyed by G-34 Mercenary with Small Laser Last Messages --------------- 01626_ Triggered Alarm Trap. 01626_ An alarm sounds. 01626_ ALERT: Alarm triggered, dispatching investigation squad. 01629_ T-07 Excavator is excavating. 01630_ U-05 Engineer lays Concrete. 01730_ Y-45 Defender destroyed. 01735_ Dropped Cooling System. 01736_ Acquired Lgt. Armor Plating. 01737_ Acquired 54 matter. 01739_ Dropped Ion Engine. 01742_ Acquired 10 matter. 01773_ G-34 Mercenary destroyed. 01777_ Acquired 30 matter. 01779_ K-01 Serf collects debris. 01787_ T-07 Excavator destroyed. 01788_ K-01 Serf collects debris. 01798_ K-01 Serf cleans the TF Node. 01807_ K-01 Serf collects debris. 01824_ G-34 Mercenary destroyed. 01825_ K-01 Serf collects debris. Map ----- +----------------------------------------------------+ | ?????????????????????????????????????????? | | ?????????????????????????????????????????? | | ?????????????????????????????????????????? | | ?????????????????????????????????????????? | | ?????????????????????????????????????????? | | ?????????????????????????????????????????? | | ?????????????????????????????????????????? | | ?????????????????????????????????????????? | | ?????????????????????????????????????????? | | ?????????????????????????????????????????? | | ?????????????????????????????????????????? | | ?????????????????????????????????????????? | | ???????????????????????#####?????????????? | | ???????????????????????# #?????????????? | | ???????????????????????# #?????????????? | | ???????????????????????# #?????????????? | | ???????????????????????# #?????????????? | | ???????????????????????# #?????????????? | | ???????????????????????# #?????????????? | | ??????????#######??????? #?????????????? | | ########### ##########+####??????????? | | #??????????? | | = " #??????????? | | |%* %[ %* #??????????? | | #######+###=! ###+######g####??????????? | | ?????# ########! %* ## @%! #??????????? | | ?????# ##??????# ! ## = #??????????? | | ?????####???????# ## " " #??????????? | | ????????????????# ## "R" #??????????? | | ????????????????# ## """ #??????????? | | ????????????????# ## #??????????? | | ????????????????# #########??????????? | | ????????????????# #??????????????????? | | ?????????????????#####???????????????????? | | | | | | | | | | | | | | | | | | | | | | | | | | | | | | | | | +----------------------------------------------------+ Best States ------------- Heat Dissipation 47 Energy Generation 12 Energy Capacity 265 Matter Stores 300 Matter Capacity 300 Sight Range 18 Terrain Scan Range 16 Terrain Scan Density 10 Armor Coverage 150 Evasion (%) 55 Offensive Hacking 10 Item Schematics ----------------- None Robot Schematics ------------------ None Fabricated ------------ Nothing Repaired ---------- Nothing Alien Tech Used ----------------- None Achievements -------------- None Challenges ------------ None RPGLIKE | -11 -10 -9 --------- Run | Yrd Mat Mat Levels Raised 2 | . 1 1 XP Earned 7230 | 3000 2330 1900 XP Spent 3450 | 1850 1600 . Upgrades 8 | 5 3 . Propulsion Slot 1 | 1 . . Utility Slot 2 | 1 1 . Weapon Slot 1 | 1 . . Inventory Capacity 2 | 1 1 . Sight Range 2 | 1 1 . Protomatter Created 214 | . 177 37 Protomatter Decayed . | . . . Game ------ Seed InsulationCargoCloak Manual? 0 Play Time 00:21:58 Cumulative 979.9 hours Start 2025.05.06 @ 13:51:40 End 2025.05.06 @ 14:17:22 Sessions 1 Manual Loads 0 Difficulty Rogue Special Mode Winter2019/RPGLIKE Game No. 76 Rogue 16 Adventurer 46 Explorer 14 Win Type - Total 49 Types 26/4/10/1/1/2/0/3/2/0 Lore% 82 Gallery% 86 Achievement% 80 Wizard Run 0 Options --------- Layout 0 ASCII 0 Keyboard 1 Movement Numpad Keybinds 0 Fullscreen 2 Font 18/SmallcapsGlow Map View 76x50 Zoom Use 1% Tactical HUD 1 Map Filters NONE Filters NONE Steam 0 RUN: 795d5a26-74c8-406e-b09a-22775f77a7ce